fUST/lending_fUST_20250221
["ID","MTS","AMOUNT","RATE_DAILY","PERIOD"]
[353877914,1740108643980,-280.23128327,0.00014009,2]
[353877915,1740108643990,-280.23128327,0.00014009,2]
[353877916,1740108643999,-280.23128327,0.00014009,2]
[353877917,1740108644008,-280.23128327,0.00014009,2]
[353877918,1740108644018,-280.23128327,0.00014009,2]
[353877919,1740108644027,-280.23128327,0.00014009,2]
[353877920,1740108644037,-280.23128327,0.00014009,2]
[353877921,1740108644047,-280.23128327,0.00014009,2]
[353877922,1740108644056,-280.23128327,0.00014009,2]
[353877923,1740108644066,-280.23,0.00014009,2]
[353877924,1740108644075,-350.98694837,0.00014009,2]
[353877925,1740108644085,-350.98694837,0.00014009,2]
[353877926,1740108644094,-350.98694837,0.00014009,2]
[353877927,1740108644103,-350.98694837,0.00014009,2]
[353877928,1740108644113,-350.98694837,0.00014009,2]
[353877929,1740108644123,-350.98694837,0.00014009,2]
[353877930,1740108644133,-350.98694837,0.00014009,2]
[353877931,1740108644142,-350.98694837,0.00014009,2]
[353877932,1740108644151,-350.98694837,0.00014009,2]
[353877933,1740108644161,-350.98694837,0.00014009,2]
[353877934,1740108644170,-350.98694837,0.00014009,2]
[353877935,1740108644179,-350.98694837,0.00014009,2]
[353877936,1740108644189,-350.98694837,0.00014009,2]
[353877937,1740108644199,-350.98694837,0.00014009,2]
[353877938,1740108644207,-350.98694837,0.00014009,2]
[353877939,1740108644216,-350.98694837,0.00014009,2]
[353877940,1740108644226,-350.98694837,0.00014009,2]
[353877941,1740108644234,-350.98694837,0.00014009,2]
[353877942,1740108644244,-350.98694837,0.00014009,2]
[353877943,1740108644254,-350.98,0.00014009,2]
[353877944,1740108644263,-160.0,0.00014024,3]
[353877945,1740108644272,-500.0,0.00014027,2]
[353877946,1740108644282,-500.0,0.00014027,2]
[353877947,1740108644291,-500.0,0.00014027,2]
[353877948,1740108644301,-500.0,0.00014027,2]
[353877949,1740108644310,-500.0,0.00014027,2]
[353877950,1740108644319,-996.48,0.00014027,2]
[353877951,1740108644328,-500.0,0.00014027,2]
[353877952,1740108644338,-500.0,0.00014027,2]
[353877953,1740108644347,-500.0,0.00014027,2]
[353877954,1740108644357,-500.0,0.00014027,2]
[353877955,1740108644366,-611.56,0.00014027,2]
[353877956,1740108644376,-500.0,0.00014027,2]
[353877957,1740108644385,-500.0,0.00014027,2]
[353877958,1740108644393,-500.0,0.00014027,2]
[353877959,1740108644403,-782.52,0.00014027,2]
[353877960,1740108644412,-500.0,0.00014027,2]
[353877961,1740108644422,-500.0,0.00014027,2]
[353877962,1740108644432,-500.0,0.00014027,2]
[353877963,1740108644443,-500.0,0.00014027,2]
[353877964,1740108644452,-500.0,0.00014027,2]
[353877965,1740108644462,-500.0,0.00014027,2]
[353877966,1740108644472,-500.0,0.00014027,2]
[353877967,1740108644481,-500.0,0.00014027,2]
[353877968,1740108644491,-924.65,0.00014027,2]
[353877969,1740108644501,-562.95,0.00014027,2]
[353877970,1740108644514,-500.0,0.00014027,2]
[353877971,1740108644525,-500.0,0.00014027,2]
[353877972,1740108644536,-815.85,0.00014027,2]
[353877973,1740108644545,-500.0,0.00014027,2]
[353877974,1740108644555,-500.0,0.00014027,2]
[353877975,1740108644565,-500.0,0.00014027,2]
[353877976,1740108644575,-690.17,0.00014027,2]
[353877977,1740108644584,-500.0,0.00014027,2]
[353877978,1740108644594,-500.0,0.00014027,2]
[353877979,1740108644603,-500.0,0.00014027,2]
[353877980,1740108644614,-616.17,0.00014027,2]
[353877981,1740108644623,-500.0,0.00014027,2]
[353877982,1740108644633,-500.0,0.00014027,2]
[353877983,1740108644642,-500.0,0.00014027,2]
[353877984,1740108644652,-14084.38,0.00014027,2]
[353877985,1740108644661,-500.0,0.00014027,2]
[353877986,1740108644671,-507.97636152,0.00014027,2]
[353877987,1740108644680,-2002.51,0.00014027,2]
[353877988,1740108644690,-614.74,0.00014027,2]
[353877989,1740108644699,-436.49850278,0.00014027,2]
[353877990,1740108644708,-500.0,0.00014027,2]
[353877991,1740108644719,-1658.62,0.00014027,2]
[353877992,1740108644728,-1964.65,0.00014027,2]
[353877993,1740108644737,-500.0,0.00014027,2]
[353877994,1740108644747,-1132.84,0.00014027,2]
[353877995,1740108644759,-6657.01,0.00014027,2]
[353877996,1740108644768,-1063.8,0.00014027,2]
[353877997,1740108644778,-1000.0,0.00014027,2]
[353877998,1740108644787,-500.0,0.00014027,2]
[353877999,1740108644797,-500.0,0.00014027,2]
[353878000,1740108644807,-899.06,0.00014027,2]
[353878001,1740108644816,-500.0,0.00014027,2]
[353878002,1740108644827,-2965.06,0.00014027,2]
[353878003,1740108644837,-1893.75,0.00014027,2]
[353878004,1740108644846,-12368.39,0.00014027,2]
[353878005,1740108644856,-29817.62,0.00014027,2]
[353878006,1740108644866,-1155.97,0.00014027,2]
[353878007,1740108644875,-579.65,0.00014027,2]
[353878008,1740108644885,-2626.88,0.00014027,2]
[353878009,1740108644894,-1498.22,0.00014027,2]
[353878010,1740108644904,-915.53,0.00014027,2]
[353878011,1740108644913,-5183.19,0.00014027,2]
[353878012,1740108644923,-500.0,0.00014027,2]
[353878013,1740108644932,-500.0,0.00014027,2]
[353878014,1740108644941,-1107.5,0.00014027,2]
[353878015,1740108644951,-950.54,0.00014027,2]
[353878016,1740108644960,-500.0,0.00014027,2]
[353878017,1740108644970,-2828.99,0.00014027,2]
[353878018,1740108644979,-2987.19,0.00014027,2]
[353878019,1740108644989,-500.0,0.00014027,2]
[353878020,1740108644999,-1569.7,0.00014027,2]
[353878021,1740108645010,-712.21,0.00014027,2]
[353878022,1740108645019,-702.91,0.00014027,2]
[353878023,1740108645029,-1013.92,0.00014027,2]
[353878024,1740108645040,-500.0,0.00014027,2]
[353878025,1740108645050,-535.78,0.00014027,2]
[353878026,1740108645059,-500.0,0.00014027,2]
[353878027,1740108645069,-838.68,0.00014027,2]
[353878028,1740108645078,-500.0,0.00014027,2]
[353878029,1740108645088,-518.65,0.00014027,2]
[353878030,1740108645098,-2041.33,0.00014027,2]
[353878031,1740108645107,-1636.13,0.00014027,2]
[353878032,1740108645117,-500.0,0.00014027,2]
[353878033,1740108645127,-500.0,0.00014027,2]
[353878034,1740108645137,-500.0,0.00014027,2]
[353878035,1740108645147,-500.0,0.00014027,2]
[353878036,1740108645157,-500.0,0.00014027,2]
[353878037,1740108645167,-4589.01,0.00014027,2]
[353878038,1740108645176,-584.08,0.00014027,2]
[353878039,1740108645186,-1616.94,0.00014027,2]
[353878040,1740108645196,-1442.95,0.00014027,2]
[353878041,1740108645206,-500.0,0.00014027,2]
[353878042,1740108645215,-500.0,0.00014027,2]
[353878043,1740108645225,-1864.66,0.00014027,2]
[353878044,1740108645235,-709.19,0.00014027,2]
[353878045,1740108645244,-500.0,0.00014027,2]
[353878046,1740108645253,-500.0,0.00014027,2]
[353878047,1740108645264,-500.0,0.00014027,2]
[353878048,1740108645274,-500.0,0.00014054,2]
[353878049,1740108645283,-500.99293683,0.00014071,2]
[353878050,1740108645293,-151.0,0.000141,2]
[353878051,1740108645304,-151.0,0.000141,2]
[353878052,1740108645315,-500.0,0.00014109,2]
[353878053,1740108645326,-500.0,0.00014109,2]
[353878054,1740108645336,-500.0,0.00014109,2]
[353878055,1740108645345,-377.1476117,0.00014109,2]
[353878056,1740108645355,-500.0,0.00014109,2]
[353878057,1740108645365,-996.48,0.00014109,2]
[353878058,1740108645374,-500.0,0.00014109,2]
[353878059,1740108645383,-500.0,0.00014109,2]
[353878060,1740108645393,-500.0,0.00014109,2]
[353878061,1740108645402,-500.0,0.00014109,2]
[353878062,1740108645411,-611.56,0.00014109,2]
[353878063,1740108645421,-500.0,0.00014109,2]
[353878064,1740108645430,-418.45113689,0.00014109,2]
[353878065,1740108645439,-782.52,0.00014109,2]
[353878066,1740108645448,-500.0,0.00014109,2]
[353878067,1740108645458,-500.0,0.00014109,2]
[353878068,1740108645468,-500.0,0.00014109,2]
[353878069,1740108645478,-500.0,0.00014109,2]
[353878070,1740108645487,-500.0,0.00014109,2]
[353878071,1740108645497,-500.0,0.00014109,2]
[353878072,1740108645507,-500.0,0.00014109,2]
[353878073,1740108645516,-500.0,0.00014109,2]
[353878074,1740108645529,-924.65,0.00014109,2]
[353878075,1740108645539,-562.95,0.00014109,2]
[353878076,1740108645548,-500.0,0.00014109,2]
[353878077,1740108645558,-500.0,0.00014109,2]
[353878078,1740108645567,-815.85,0.00014109,2]
[353878079,1740108645577,-500.0,0.00014109,2]
[353878080,1740108645586,-500.0,0.00014109,2]
[353878081,1740108645596,-500.0,0.00014109,2]
[353878082,1740108645606,-690.17,0.00014109,2]
[353878083,1740108645615,-500.0,0.00014109,2]
[353878084,1740108645624,-500.0,0.00014109,2]
[353878085,1740108645634,-500.0,0.00014109,2]
[353878086,1740108645643,-616.17,0.00014109,2]
[353878087,1740108645652,-500.0,0.00014109,2]
[353878088,1740108645662,-500.0,0.00014109,2]
[353878089,1740108645672,-500.0,0.00014109,2]
[353878090,1740108645681,-14084.38,0.00014109,2]
[353878091,1740108645691,-500.0,0.00014109,2]
[353878092,1740108645699,-2002.51,0.00014109,2]
[353878093,1740108645709,-614.74,0.00014109,2]
[353878094,1740108645718,-500.0,0.00014109,2]
[353878095,1740108645727,-1658.62,0.00014109,2]
[353878096,1740108645737,-1964.65,0.00014109,2]
[353878097,1740108645747,-500.0,0.00014109,2]
[353878098,1740108645757,-1132.84,0.00014109,2]
[353878099,1740108645767,-6657.01,0.00014109,2]
[353878100,1740108645778,-1063.8,0.00014109,2]
[353878101,1740108645787,-1000.0,0.00014109,2]
[353878102,1740108645796,-500.0,0.00014109,2]
[353878103,1740108645806,-500.0,0.00014109,2]
[353878105,1740108645815,-899.06,0.00014109,2]
[353878106,1740108645825,-500.0,0.00014109,2]
[353878107,1740108645835,-2965.06,0.00014109,2]
[353878108,1740108645845,-1893.75,0.00014109,2]
[353878109,1740108645854,-12368.39,0.00014109,2]
[353878110,1740108645864,-29817.62,0.00014109,2]
[353878112,1740108645873,-1155.97,0.00014109,2]
[353878113,1740108645883,-579.65,0.00014109,2]
[353878115,1740108645892,-2626.88,0.00014109,2]
[353878117,1740108645905,-1498.22,0.00014109,2]
[353878118,1740108645915,-915.53,0.00014109,2]
[353878119,1740108645925,-5183.19,0.00014109,2]
[353878120,1740108645934,-500.0,0.00014109,2]
[353878121,1740108645944,-500.0,0.00014109,2]
[353878122,1740108645953,-1107.5,0.00014109,2]
[353878123,1740108645963,-950.54,0.00014109,2]
[353878124,1740108645973,-500.0,0.00014109,2]
[353878126,1740108645983,-2828.99,0.00014109,2]
[353878128,1740108645994,-2987.19,0.00014109,2]
[353878130,1740108646005,-500.0,0.00014109,2]
[353878132,1740108646017,-1569.7,0.00014109,2]
[353878133,1740108646027,-712.21,0.00014109,2]
[353878134,1740108646041,-702.91,0.00014109,2]
[353878135,1740108646052,-1013.92,0.00014109,2]
[353878136,1740108646062,-500.0,0.00014109,2]
[353878137,1740108646072,-535.78,0.00014109,2]
[353878138,1740108646082,-500.0,0.00014109,2]
[353878139,1740108646092,-838.68,0.00014109,2]
[353878145,1740108646198,-500.0,0.00014109,2]
[353878146,1740108646209,-518.65,0.00014109,2]
[353878147,1740108646219,-2041.33,0.00014109,2]
[353878148,1740108646228,-1636.13,0.00014109,2]
[353878149,1740108646237,-500.0,0.00014109,2]
[353878150,1740108646246,-500.0,0.00014109,2]
[353878151,1740108646255,-500.0,0.00014109,2]
[353878152,1740108646266,-500.0,0.00014109,2]
[353878153,1740108646275,-500.0,0.00014109,2]
[353878154,1740108646284,-4589.01,0.00014109,2]
[353878155,1740108646294,-584.08,0.00014109,2]
[353878156,1740108646303,-1616.94,0.00014109,2]
[353878157,1740108646312,-1442.95,0.00014109,2]
[353878158,1740108646321,-500.0,0.00014109,2]
[353878159,1740108646331,-500.0,0.00014109,2]
[353878160,1740108646339,-1864.66,0.00014109,2]
[353878161,1740108646350,-709.19,0.00014109,2]
[353878162,1740108646359,-500.0,0.00014109,2]
[353878163,1740108646369,-500.0,0.00014109,2]
[353878164,1740108646378,-500.0,0.00014109,2]
[353878165,1740108646387,-600.0,0.00014164,2]
[353878166,1740108646396,-501.07938361,0.00014173,2]
[353878167,1740108646406,-500.0,0.00014173,2]
[353878168,1740108646416,-501.48132129,0.00014173,2]
[353878169,1740108646425,-500.43396858,0.00014173,2]
[353878170,1740108646435,-500.27639315,0.00014173,2]
[353878171,1740108646444,-500.0,0.00014173,2]
[353878172,1740108646453,-500.0,0.00014173,2]
[353878173,1740108646463,-500.0,0.00014173,2]
[353878174,1740108646472,-500.0,0.00014173,2]
[353878175,1740108646482,-500.44003634,0.00014173,2]
[353878176,1740108646491,-500.0,0.00014173,2]
[353878177,1740108646500,-500.22613263,0.00014173,2]
[353878178,1740108646509,-156.65484187,0.00014173,2]
[353878179,1740108646519,-500.2436958,0.00014173,2]
[353878180,1740108646531,-500.15058549,0.00014173,2]
[353878181,1740108646540,-597.46128311,0.00014173,2]
[353878182,1740108646549,-501.18809879,0.00014173,2]
[353878183,1740108646558,-502.47630544,0.00014173,2]
[353878184,1740108646567,-500.0,0.00014173,2]
[353878185,1740108646578,-500.0,0.00014173,2]
[353878186,1740108646587,-500.0,0.00014173,2]
[353878187,1740108646596,-500.0,0.00014173,2]
[353878188,1740108646606,-276.06250439,0.00014186,2]
[353878189,1740108646615,-500.0,0.00014191,2]
[353878190,1740108646625,-500.0,0.00014191,2]
[353878191,1740108646634,-500.0,0.00014191,2]
[353878192,1740108646643,-500.0,0.00014191,2]
[353878193,1740108646653,-996.48,0.00014191,2]
[353878194,1740108646662,-500.0,0.00014191,2]
[353878195,1740108646671,-506.26753492,0.00014191,2]
[353878196,1740108646680,-500.0,0.00014191,2]
[353878197,1740108646690,-500.0,0.00014191,2]
[353878198,1740108646699,-611.56,0.00014191,2]
[353878199,1740108646709,-500.0,0.00014191,2]
[353878200,1740108646718,-782.52,0.00014191,2]
[353878201,1740108646728,-500.0,0.00014191,2]
[353878202,1740108646737,-500.0,0.00014191,2]
[353878203,1740108646746,-500.0,0.00014191,2]
[353878204,1740108646756,-500.0,0.00014191,2]
[353878205,1740108646766,-500.0,0.00014191,2]
[353878206,1740108646775,-500.0,0.00014191,2]
[353878207,1740108646784,-500.0,0.00014191,2]
[353878208,1740108646793,-500.0,0.00014191,2]
[353878209,1740108646803,-924.65,0.00014191,2]
[353878210,1740108646812,-562.95,0.00014191,2]
[353878211,1740108646821,-500.0,0.00014191,2]
[353878212,1740108646830,-500.0,0.00014191,2]
[353878213,1740108646839,-815.85,0.00014191,2]
[353878214,1740108646849,-500.0,0.00014191,2]
[353878215,1740108646858,-500.0,0.00014191,2]
[353878216,1740108646868,-500.0,0.00014191,2]
[353878217,1740108646878,-690.17,0.00014191,2]
[353878218,1740108646888,-500.0,0.00014191,2]
[353878219,1740108646897,-500.0,0.00014191,2]
[353878220,1740108646907,-500.0,0.00014191,2]
[353878221,1740108646916,-616.17,0.00014191,2]
[353878222,1740108646927,-500.0,0.00014191,2]
[353878223,1740108646936,-500.0,0.00014191,2]
[353878224,1740108646946,-500.0,0.00014191,2]
[353878225,1740108646955,-14084.38,0.00014191,2]
[353878226,1740108646965,-500.0,0.00014191,2]
[353878227,1740108646975,-2002.51,0.00014191,2]
[353878228,1740108646985,-614.74,0.00014191,2]
[353878229,1740108646994,-500.0,0.00014191,2]
[353878230,1740108647003,-1658.62,0.00014191,2]
[353878231,1740108647014,-1964.65,0.00014191,2]
[353878232,1740108647023,-500.0,0.00014191,2]
[353878233,1740108647034,-1132.84,0.00014191,2]
[353878234,1740108647043,-6657.01,0.00014191,2]
[353878235,1740108647053,-1063.8,0.00014191,2]
[353878236,1740108647063,-361.98425505,0.00014191,2]
[353878237,1740108647072,-500.0,0.00014191,2]
[353878238,1740108647082,-500.0,0.00014191,2]
[353878239,1740108647092,-899.06,0.00014191,2]
[353878240,1740108647101,-500.0,0.00014191,2]
[353878241,1740108647111,-2965.06,0.00014191,2]
[353878242,1740108647120,-1893.75,0.00014191,2]
[353878243,1740108647130,-12368.39,0.00014191,2]
[353878244,1740108647140,-29817.62,0.00014191,2]
[353878245,1740108647149,-1155.97,0.00014191,2]
[353878246,1740108647159,-579.65,0.00014191,2]
[353878247,1740108647169,-2626.88,0.00014191,2]
[353878248,1740108647178,-1498.22,0.00014191,2]
[353878249,1740108647188,-915.53,0.00014191,2]
[353878250,1740108647197,-5183.19,0.00014191,2]
[353878251,1740108647206,-500.0,0.00014191,2]
[353878252,1740108647216,-500.0,0.00014191,2]
[353878253,1740108647225,-1107.5,0.00014191,2]
[353878254,1740108647235,-950.54,0.00014191,2]
[353878255,1740108647244,-500.0,0.00014191,2]
[353878256,1740108647253,-2828.99,0.00014191,2]
[353878257,1740108647263,-2987.19,0.00014191,2]
[353878258,1740108647273,-500.0,0.00014191,2]
[353878259,1740108647283,-1569.7,0.00014191,2]
[353878260,1740108647292,-712.21,0.00014191,2]
[353878261,1740108647302,-702.91,0.00014191,2]
[353878262,1740108647311,-1013.92,0.00014191,2]
[353878263,1740108647320,-500.0,0.00014191,2]
[353878264,1740108647331,-535.78,0.00014191,2]
[353878265,1740108647341,-500.0,0.00014191,2]
[353878266,1740108647350,-838.68,0.00014191,2]
[353878267,1740108647360,-500.0,0.00014191,2]
[353878268,1740108647370,-518.65,0.00014191,2]
[353878269,1740108647380,-2041.33,0.00014191,2]
[353878270,1740108647389,-1636.13,0.00014191,2]
[353878271,1740108647398,-500.0,0.00014191,2]
[353878272,1740108647408,-500.0,0.00014191,2]
[353878273,1740108647417,-500.0,0.00014191,2]
[353878274,1740108647427,-500.0,0.00014191,2]
[353878275,1740108647436,-500.0,0.00014191,2]
[353878276,1740108647447,-4589.01,0.00014191,2]
[353878277,1740108647456,-584.08,0.00014191,2]
[353878278,1740108647465,-1616.94,0.00014191,2]
[353878279,1740108647475,-1442.95,0.00014191,2]
[353878280,1740108647484,-500.0,0.00014191,2]
[353878281,1740108647493,-500.0,0.00014191,2]
[353878282,1740108647502,-1864.66,0.00014191,2]
[353878283,1740108647514,-709.19,0.00014191,2]
[353878284,1740108647524,-500.0,0.00014191,2]
[353878285,1740108647537,-500.0,0.00014191,2]
[353878286,1740108647546,-430.04102964,0.00014191,2]
[353878287,1740108647556,-151.0,0.000142,2]
[353878288,1740108647567,-151.0,0.000142,2]
[353878289,1740108647577,-7438.69753278,0.00014244,2]
[353878290,1740108647587,-157.9585571,0.00014256,2]
[353878291,1740108647596,-157.9585571,0.00014256,2]
[353878292,1740108647607,-157.9585571,0.00014256,2]
[353878293,1740108647619,-157.9585571,0.00014256,2]
[353878294,1740108647629,-157.9585571,0.00014256,2]
[353878295,1740108647639,-157.95,0.00014256,2]
[353878296,1740108647649,-653.87299429,0.00014256,2]
[353878297,1740108647658,-653.87299429,0.00014256,2]
[353878298,1740108647668,-653.87299429,0.00014256,2]
[353878299,1740108647677,-653.87299429,0.00014256,2]
[353878300,1740108647686,-653.87299429,0.00014256,2]
[353878301,1740108647696,-653.87299429,0.00014256,2]
[353878302,1740108647705,-653.87299429,0.00014256,2]
[353878303,1740108647715,-653.87299429,0.00014256,2]
[353878304,1740108647725,-653.87299429,0.00014256,2]
[353878305,1740108647736,-653.87299429,0.00014256,2]
[353878306,1740108647745,-653.87299429,0.00014256,2]
[353878307,1740108647755,-653.87299429,0.00014256,2]
[353878308,1740108647765,-653.87299429,0.00014256,2]
[353878309,1740108647775,-653.87299429,0.00014256,2]
[353878310,1740108647784,-653.87299429,0.00014256,2]
[353878311,1740108647794,-653.87299429,0.00014256,2]
[353878312,1740108647803,-653.87299429,0.00014256,2]
[353878313,1740108647813,-653.87299429,0.00014256,2]
[353878314,1740108647822,-653.87299429,0.00014256,2]
[353878315,1740108647831,-653.87,0.00014256,2]
[353878316,1740108647841,-818.96954621,0.00014256,2]
[353878317,1740108647851,-818.96954621,0.00014256,2]
[353878318,1740108647860,-818.96954621,0.00014256,2]
[353878319,1740108647870,-818.96954621,0.00014256,2]
[353878320,1740108647879,-818.96954621,0.00014256,2]
[353878321,1740108647888,-818.96954621,0.00014256,2]
[353878322,1740108647898,-818.96954621,0.00014256,2]
[353878323,1740108647907,-818.96954621,0.00014256,2]
[353878324,1740108647916,-818.96954621,0.00014256,2]
[353878325,1740108647926,-818.96954621,0.00014256,2]
[353878326,1740108647936,-818.96954621,0.00014256,2]
[353878327,1740108647945,-818.96954621,0.00014256,2]
[353878328,1740108647955,-818.96954621,0.00014256,2]
[353878329,1740108647964,-818.96954621,0.00014256,2]
[353878330,1740108647974,-818.96954621,0.00014256,2]
[353878331,1740108647984,-818.96954621,0.00014256,2]
[353878332,1740108647994,-818.96954621,0.00014256,2]
[353878333,1740108648003,-818.96954621,0.00014256,2]
[353878334,1740108648013,-818.96954621,0.00014256,2]
[353878335,1740108648022,-818.96,0.00014256,2]
[353878336,1740108648032,-500.0,0.00014273,2]
[353878337,1740108648043,-500.0,0.00014273,2]
[353878338,1740108648054,-500.0,0.00014273,2]
[353878339,1740108648063,-500.0,0.00014273,2]
[353878340,1740108648075,-996.48,0.00014273,2]
[353878341,1740108648084,-500.0,0.00014273,2]
[353878342,1740108648094,-500.0,0.00014273,2]
[353878343,1740108648104,-500.0,0.00014273,2]
[353878344,1740108648113,-611.56,0.00014273,2]
[353878345,1740108648123,-500.0,0.00014273,2]
[353878346,1740108648132,-782.52,0.00014273,2]
[353878347,1740108648143,-500.0,0.00014273,2]
[353878348,1740108648153,-500.0,0.00014273,2]
[353878349,1740108648163,-500.0,0.00014273,2]
[353878350,1740108648173,-500.0,0.00014273,2]
[353878351,1740108648183,-500.0,0.00014273,2]
[353878352,1740108648193,-500.0,0.00014273,2]
[353878353,1740108648203,-500.0,0.00014273,2]
[353878354,1740108648212,-500.0,0.00014273,2]
[353878355,1740108648223,-924.65,0.00014273,2]
[353878356,1740108648232,-562.95,0.00014273,2]
[353878357,1740108648242,-500.0,0.00014273,2]
[353878358,1740108648251,-500.0,0.00014273,2]
[353878359,1740108648261,-815.85,0.00014273,2]
[353878360,1740108648270,-500.24904968,0.00014273,2]
[353878361,1740108648279,-500.0,0.00014273,2]
[353878362,1740108648288,-500.0,0.00014273,2]
[353878363,1740108648297,-690.17,0.00014273,2]
[353878364,1740108648308,-500.0,0.00014273,2]
[353878365,1740108648317,-500.0,0.00014273,2]
[353878366,1740108648327,-500.0,0.00014273,2]
[353878367,1740108648336,-616.17,0.00014273,2]
[353878368,1740108648346,-500.0,0.00014273,2]
[353878369,1740108648355,-500.0,0.00014273,2]
[353878370,1740108648365,-500.0,0.00014273,2]
[353878371,1740108648374,-14084.38,0.00014273,2]
[353878372,1740108648383,-500.0,0.00014273,2]
[353878373,1740108648393,-2002.51,0.00014273,2]
[353878374,1740108648402,-614.74,0.00014273,2]
[353878375,1740108648411,-500.0,0.00014273,2]
[353878376,1740108648420,-1658.62,0.00014273,2]
[353878377,1740108648430,-1964.65,0.00014273,2]
[353878378,1740108648439,-500.0,0.00014273,2]
[353878379,1740108648449,-1132.84,0.00014273,2]
[353878380,1740108648459,-6657.01,0.00014273,2]
[353878381,1740108648469,-1063.8,0.00014273,2]
[353878382,1740108648479,-500.0,0.00014273,2]
[353878383,1740108648585,-500.0,0.00014273,2]
[353878384,1740108648595,-899.06,0.00014273,2]
[353878385,1740108648605,-500.0,0.00014273,2]
[353878386,1740108648614,-2965.06,0.00014273,2]
[353878387,1740108648625,-1893.75,0.00014273,2]
[353878388,1740108648634,-12368.39,0.00014273,2]
[353878389,1740108648643,-29817.62,0.00014273,2]
[353878390,1740108648653,-1155.97,0.00014273,2]
[353878391,1740108648662,-579.65,0.00014273,2]
[353878392,1740108648671,-2626.88,0.00014273,2]
[353878393,1740108648680,-1498.22,0.00014273,2]
[353878394,1740108648689,-915.53,0.00014273,2]
[353878395,1740108648698,-5183.19,0.00014273,2]
[353878396,1740108648707,-500.0,0.00014273,2]
[353878397,1740108648717,-500.0,0.00014273,2]
[353878398,1740108648727,-1107.5,0.00014273,2]
[353878399,1740108648737,-950.54,0.00014273,2]
[353878400,1740108648747,-500.0,0.00014273,2]
[353878401,1740108648756,-2828.99,0.00014273,2]
[353878402,1740108648765,-2987.19,0.00014273,2]
[353878403,1740108648776,-500.0,0.00014273,2]
[353878404,1740108648786,-1569.7,0.00014273,2]
[353878405,1740108648795,-712.21,0.00014273,2]
[353878406,1740108648804,-702.91,0.00014273,2]
[353878407,1740108648814,-1013.92,0.00014273,2]
[353878408,1740108648823,-491.74280467,0.00014273,2]
[353878409,1740108648832,-535.78,0.00014273,2]
[353878410,1740108648842,-500.0,0.00014273,2]
[353878411,1740108648852,-838.68,0.00014273,2]
[353878412,1740108648862,-500.0,0.00014273,2]
[353878413,1740108648873,-518.65,0.00014273,2]
[353878414,1740108648882,-2041.33,0.00014273,2]
[353878415,1740108648892,-1636.13,0.00014273,2]
[353878416,1740108648902,-500.0,0.00014273,2]
[353878417,1740108648912,-500.0,0.00014273,2]
[353878418,1740108648922,-500.0,0.00014273,2]
[353878419,1740108648932,-500.0,0.00014273,2]
[353878420,1740108648942,-241.48260556,0.00014273,2]
[353878421,1740108648952,-4589.01,0.00014273,2]
[353878422,1740108648962,-584.08,0.00014273,2]
[353878423,1740108648973,-1616.94,0.00014273,2]
[353878424,1740108648983,-1442.95,0.00014273,2]
[353878425,1740108648993,-500.0,0.00014273,2]
[353878426,1740108649003,-500.0,0.00014273,2]